Cogmind - Beta 14 @@@ ROGUE MODE // 2024.11.24 @ 23:32:32 Player: atomicthumbs Result: Destroyed by S-27 Virus with Autogun Performance ------------- Evolutions (4) 2000 Regions Visited (8) 1600 Robots Destroyed (44) 220 Value Destroyed (1337) 1337 Prototype IDs (26) 520 Alien Tech Used (0) 0 Bonus (964) 964 TOTAL SCORE: 6641 Bonus ------- High Alert Combat Kills 75 Follower Combat Kills 89 Entered DSFs 500 Aligned with FarCom 300 Cogmind --------- Core Integrity 0/850 Matter 197/300 Energy 93/100 System Corruption 5% Temperature Cool (0) Movement Core (50) Location -6/Factory Parts ------- > --- POWER (1) -------- (None) > --- PROPULSION (4) --- (None) > --- UTILITY (8) ------ Signal Interpreter Advanced Terrain Scan Processor Armor Integrity Analyzer Improved Power Shielding (fused) > --- WEAPON (2) ------- (None) > --- INVENTORY (5) ---- Power Amplifier Experimental Sensor Array Improved Weapon Shielding Proton Cannon Phase Cannon Peak State ------------ > --- POWER ------------ Cooled Ion Engine > --- PROPULSION ------- Flying Fortress v7 > --- UTILITY ---------- Cryofiber Web Medium Storage Unit Signal Interpreter Improved Terrain Scanner Improved Terrain Scan Processor Armor Integrity Analyzer Improved Weapon Shielding Hardened Medium Armor Plating > --- WEAPON ----------- Force Rifle Long-range Missile Launcher > --- INVENTORY -------- Large Battery Experimental Sensor Array ECM Suite Improved Power Shielding Improved Medium Armor Plating EM Pulse Cannon Proton Cannon Heavy Particle Cannon Bore Cannon Rocket Launcher [Rating: 70] Favorites ----------- Power Ion Engine Engine Ion Engine Propulsion Aluminum Leg Leg Aluminum Leg Flight Unit Flying Fortress v7 Utility Signal Interpreter Device Cryofiber Web Storage Medium Storage Unit Processor Signal Interpreter Protection Improved Weapon Shielding Weapon Beamcaster Energy Gun Beamcaster Energy Cannon Beam Cannon Ballistic Cannon Bore Cannon Launcher Rocket Launcher Build | -11 -10 -10 -10 -9 -8 -7 -7 -6 ------- Run | Yrd Mat Min Exi Min Mat Fac DSF Fac Slots Evolved 8 | . . . . . 4 2 . 2 Power . | . . . . . . . . . Propulsion 2 | . . . . . 2 . . . Utility 6 | . . . . . 2 2 . 2 Weapon . | . . . . . . . . . Parts Attached 54 | . 9 8 . 3 12 4 . 18 Power 4 | . 1 1 . 1 1 . . . Engine 4 | . 1 1 . 1 1 . . . Core . | . . . . . . . . . Reactor . | . . . . . . . . . Propulsion 8 | . 3 3 . 1 1 . . . Treads . | . . . . . . . . . Leg 7 | . 3 3 . 1 . . . . Wheel . | . . . . . . . . . Hover . | . . . . . . . . . Flight 1 | . . . . . 1 . . . Utility 21 | . 1 1 . . 4 4 . 11 Device 6 | . . . . . . 2 . 4 Storage 4 | . . 1 . . 2 . . 1 Processor 4 | . 1 . . . 1 . . 2 Hackware . | . . . . . . . . . Protection 7 | . . . . . 1 2 . 4 Artifact . | . . . . . . . . . Weapon 21 | . 4 3 . 1 6 . . 7 Energy Gun 7 | . 3 2 . . 1 . . 1 Energy Cannon 8 | . 1 1 . . 3 . . 3 Ballistic Gun . | . . . . . . . . . Ballistic Cannon 1 | . . . . . 1 . . . Launcher 5 | . . . . 1 1 . . 3 Special Weapon . | . . . . . . . . . Impact Weapon . | . . . . . . . . . Slashing Weapon . | . . . . . . . . . Piercing Weapon . | . . . . . . . . . Special Melee Weapon . | . . . . . . . . . Unidentified Prototypes 3 | . . . . . 2 . . 1 Parts Lost 9 | . . . . . . . . 9 Power 1 | . . . . . . . . 1 Propulsion 1 | . . . . . . . . 1 Utility 5 | . . . . . . . . 5 Weapon 2 | . . . . . . . . 2 Highest Loss Streak 8 | . . . . . . . . 8 To Critical Strikes . | . . . . . . . . . Average Slot Usage (%) 92 | . 99 98 100 100 72 76 76 77 Engine 11 | . 14 14 14 14 9 7 7 5 Leg 19 | . 28 28 28 28 . . . . Flight 2 | . . . . . 9 7 7 5 Device 2 | . . . . . . 7 7 10 Storage 12 | . 14 14 14 14 9 7 7 8 Processor 15 | . 13 14 14 14 18 15 15 19 Protection 3 | . . . . . 8 15 15 12 Energy Gun 15 | . 19 19 28 24 . . . 2 Energy Cannon 4 | . 8 7 . . 8 7 7 2 Ballistic Cannon 1 | . . . . . 8 7 7 . Launcher 1 | . . . . 3 . . . 5 Peak Build Rating 70 | . 9 17 19 26 55 60 61 70 Average Rating 29 | . 7 15 17 22 54 59 60 64 On Entrance 28 | 6 6 9 17 19 26 55 60 61 Naked Turns . | . . . . . . . . . Heaviest Build 47 | 12 16 23 23 23 35 44 44 47 Greatest Support 50 | 20 20 25 25 35 50 50 50 50 Greatest Overweight (x) 1 | . 1 . . . . . . 1 Average Overweight (x) . | . . . . . . . . . Largest Inventory Capacity 10 | . 8 10 10 10 10 10 10 10 Average Capacity 9 | . 8 9 10 10 10 10 10 9 Most Carried 10 | . 8 10 10 10 10 9 10 10 Average Carried 9 | . 7 9 9 9 8 8 9 9 Final Capacity 10 | 8 8 10 10 10 10 10 10 5 Final Carried 10 | 6 8 10 10 10 10 9 10 5 Class Distribution -------------------- 50% | Scavenger-Mutant 37% | Mutant 12% | Scout Dominant Class ---------------- Mutant | -10/Materials Scavenger-Mutant | -10/Mines Scavenger-Mutant | -10/Exiles Scavenger-Mutant | -9/Mines Mutant | -8/Materials Scout | -7/Factory Scout | -7/DSF Mutant | -6/Factory Resources | -11 -10 -10 -10 -9 -8 -7 -7 -6 ----------- Run | Yrd Mat Min Exi Min Mat Fac DSF Fac Matter Collected 942 | 186 104 80 . 41 175 . . 356 Remotely . | . . . . . . . . . Salvage Created 1332 | . 295 326 . 53 230 . . 428 Parts 84 | . 23 11 . 5 16 . . 29 Haulers Intercepted 4 | . 2 . . . 2 . . . Recyclers Shooed . | . . . . . . . . . Parts Field Recycled . | . . . . . . . . . Retrieved Matter . | . . . . . . . . . Parts Self-Destructed . | . . . . . . . . . Prevented . | . . . . . . . . . Kills | -11 -10 -10 -10 -9 -8 -7 -7 -6 ------- Run | Yrd Mat Min Exi Min Mat Fac DSF Fac Combat Hostiles Destroyed 30 | . 3 7 . 3 7 . . 10 Guns 8 | . 2 2 . 3 . . . 1 Cannons 10 | . 1 5 . . 2 . . 2 AOE 11 | . . . . . 4 . . 7 Classes Destroyed 12 | . 4 . . 1 2 . . 5 Worker 1 | . . . . . . . . 1 Builder 2 | . . . . . . . . 2 Hauler 4 | . 2 . . . 2 . . . Mechanic 1 | . . . . . . . . 1 Operator 2 | . 2 . . . . . . . Watcher 4 | . 3 . . . . . . 1 Swarmer 10 | . . . . 3 4 . . 3 Grunt 15 | . 3 7 . . 1 . . 4 Brawler 1 | . . . . . . . . 1 Sentry 2 | . . . . . 1 . . 1 Hunter 1 | . . . . . 1 . . . Programmer 1 | . . . . . . . . 1 Best Kill Streak 6 | . 4 2 . 2 4 . . 6 Combat Bots Only 6 | . 2 2 . 2 4 . . 6 Max Kills in Single Turn 4 | . 1 1 . 1 4 . . 3 Gunslinging . | . . . . . . . . . Exploded 4 | . . . . . 4 . . 3 Melee . | . . . . . . . . . Uniques/NPCs Destroyed . | . . . . . . . . . Combat | -11 -10 -10 -10 -9 -8 -7 -7 -6 -------- Run | Yrd Mat Min Exi Min Mat Fac DSF Fac Hostile Shots Fired 370 | . 17 17 1 20 10 . 7 298 Missed 150 | . 3 5 1 3 4 . 5 129 Damage Taken 3163 | . 181 181 . 138 79 . 65 2519 Core 1019 | . 39 62 . 46 16 . . 856 Absorbed by Shields . | . . . . . . . . . Redirected to Shielding 149 | . . . . . 26 . . 123 Regen/Repaired (Parts) 34 | . . . . . . . . 34 Core Remaining (%) 84 | 100 . . . 41 97 . 100 . Volleys Fired 96 | . 27 16 . 12 13 . . 28 Largest 2 | . 2 2 . 2 2 . . 2 Hottest 155 | . 116 140 . 140 120 . . 155 Shots Fired 175 | . 53 28 . 23 25 . . 46 Gun 101 | . 47 15 . 22 . . . 17 Cannon 58 | . 6 13 . . 24 . . 15 Launcher 16 | . . . . 1 1 . . 14 Special . | . . . . . . . . . Kinetic 18 | . . . . . 12 . . 6 Thermal 126 | . 53 28 . 22 . . . 23 Explosive 16 | . . . . 1 1 . . 14 Electromagnetic 15 | . . . . . 12 . . 3 Robot Hit Streak 10 | . 7 10 . 2 4 . . 7 Robot Miss Streak 6 | . 3 2 . 6 2 . . 2 Penetration Max . | . . . . . . . . . Secondary Targets . | . . . . . . . . . Shots Hit Robots 102 | . 31 20 . 6 17 . . 28 Core Hits 67 | . 14 10 . 3 9 . . 31 Critical Kills 2 | . . . . . 2 . . . Critical Parts Destroyed 7 | . . . . . 4 . . 3 Critical Strikes 13 | . 4 . . . 6 . . 3 Burn 4 | . 4 . . . . . . . Destroy 9 | . . . . . 6 . . 3 Melee Attacks . | . . . . . . . . . Impact . | . . . . . . . . . Slashing . | . . . . . . . . . Piercing . | . . . . . . . . . Sneak Attacks . | . . . . . . . . . Combat Hostiles . | . . . . . . . . . Follow-up Attacks . | . . . . . . . . . Damage Inflicted 3793 | . 409 382 . 100 569 . . 2333 Guns 943 | . 338 225 . 100 . . . 280 Cannons 867 | . 71 157 . . 361 . . 278 Explosions 1983 | . . . . . 208 . . 1775 Melee . | . . . . . . . . . Ramming . | . . . . . . . . . Kinetic 250 | . . . . . 140 . . 110 Thermal 1359 | . 409 382 . 100 20 . . 448 Explosive 1963 | . . . . . 188 . . 1775 Electromagnetic 221 | . . . . . 221 . . . Impact . | . . . . . . . . . Slashing . | . . . . . . . . . Piercing . | . . . . . . . . . Highest Corruption 5 | . . . . . . . . 5 Average Corruption 2 | . . . . . . . . 2 Corruption Purged . | . . . . . . . . . Corruption Blocked . | . . . . . . . . . Effects 7 | . . . . . . . . 7 Message Errors 4 | . . . . . . . . 4 Energy Discharges 1 | . . . . . . . . 1 Parts Fused 1 | . . . . . . . . 1 Data Loss (minor) 1 | . . . . . . . . 1 Overload Shots . | . . . . . . . . . Overflow Damage 54 | . . . . . . . . 54 Projectiles . | . . . . . . . . . Explosions 54 | . . . . . . . . 54 Melee . | . . . . . . . . . Knockbacks . | . . . . . . . . . Impact . | . . . . . . . . . Kinetic . | . . . . . . . . . Secondary . | . . . . . . . . . Self-Inflicted Damage 60 | . . . . . . . . 60 Shots 1 | . . . . . . . . 1 Rammed . | . . . . . . . . . Targets Rammed . | . . . . . . . . . Kicked . | . . . . . . . . . Crushed . | . . . . . . . . . Highest Temperature 546 | . 237 411 . 546 201 . . 438 Average Temperature 142 | . 61 143 . 264 84 . . 176 Received Heat Transfer 711 | . 99 108 . . 27 . . 477 Effects 11 | . . 2 . 9 . . . . Shutdowns 2 | . . 1 . 1 . . . . Interference 2 | . . 1 . 1 . . . . Damage (minor) 2 | . . . . 2 . . . . Damage (major) 5 | . . . . 5 . . . . Siege Activations . | . . . . . . . . . Robots Corrupted 1 | . . . . . 1 . . . Combat Hostiles 1 | . . . . . 1 . . . Parts Fried . | . . . . . . . . . Impact Corruptions . | . . . . . . . . . Robots Melted 1 | . 1 . . . . . . . Combat Hostiles . | . . . . . . . . . Parts Melted 2 | . 1 1 . . . . . . Heat Transferred 2953 | . 1312 740 . 222 50 . . 629 Parts Sabotaged . | . . . . . . . . . Parts Stolen . | . . . . . . . . . Parts Stripped . | . . . . . . . . . Power Chain Reactions 1 | . . . . . 1 . . . Alert | -11 -10 -10 -10 -9 -8 -7 -7 -6 ------- Run | Yrd Mat Min Exi Min Mat Fac DSF Fac Peak Influence 780 | . 173 125 . 109 306 138 115 780 Initial 138 | . . 10 . . . 138 100 60 Average 153 | . 57 62 . 66 201 138 101 399 Maximum Alert Level 3 | . . . . . 1 . . 3 Low Security (%) 76 | . 100 100 . 100 50 100 100 17 Level 1 11 | . . . . . 49 . . 30 Level 2 10 | . . . . . . . . 45 Level 3 1 | . . . . . . . . 6 Level 4 . | . . . . . . . . . Level 5 . | . . . . . . . . . High Security . | . . . . . . . . . Max Security . | . . . . . . . . . Squads Dispatched 19 | . 3 . . . 2 . . 14 Investigation 5 | . 1 . . . . . . 4 Extermination 2 | . . . . . . . . 2 Reinforcement 7 | . 2 . . . 2 . . 3 Assault 2 | . . . . . . . . 2 Garrison 3 | . . . . . . . . 3 Intercept . | . . . . . . . . . Searches Triggered . | . . . . . . . . . Construction Impeded 1 | . . . . . . . . 1 Haulers Reinforced 1 | . . . . . . . . 1 Active Scanning Responses . | . . . . . . . . . Cargo Convoy Interrupts . | . . . . . . . . . Stealth | -11 -10 -10 -10 -9 -8 -7 -7 -6 --------- Run | Yrd Mat Min Exi Min Mat Fac DSF Fac Distress Signals 1 | . . . . . . . . 1 Communications Jammed . | . . . . . . . . . Distress Signals . | . . . . . . . . . Times Spotted 83 | . 12 9 3 6 8 . 2 43 Peak Tracking Total 16 | . 3 2 3 3 5 . 3 16 Tactical Retreats 12 | . . 2 . 1 1 . 1 7 Traps | -11 -10 -10 -10 -9 -8 -7 -7 -6 ------- Run | Yrd Mat Min Exi Min Mat Fac DSF Fac Traps Triggered 4 | . 2 1 . . . . 1 . Indirectly . | . . . . . . . . . Trap Hack Attempts . | . . . . . . . . . Triggered . | . . . . . . . . . Disarmed . | . . . . . . . . . Reprogrammed . | . . . . . . . . . Reused . | . . . . . . . . . Traps Extracted . | . . . . . . . . . Installed . | . . . . . . . . . Triggered . | . . . . . . . . . Machines | -11 -10 -10 -10 -9 -8 -7 -7 -6 ---------- Run | Yrd Mat Min Exi Min Mat Fac DSF Fac Machines Disabled 12 | . . . . . 1 . . 11 Max in Single Turn 4 | . . . . . 1 . . 4 Machines Repaired . | . . . . . . . . . Machines Dismantled . | . . . . . . . . . Machines Sabotaged . | . . . . . . . . . Overloaded Fab Kills . | . . . . . . . . . Hacking | -11 -10 -10 -10 -9 -8 -7 -7 -6 --------- Run | Yrd Mat Min Exi Min Mat Fac DSF Fac Machines Accessed 18 | . 2 1 3 . 2 1 . 9 Terminals 11 | . 2 . . . 2 1 . 6 Fabricators 1 | . . . . . . . . 1 Repair Stations 1 | . . . . . . . . 1 Recycling Units . | . . . . . . . . . Scanalyzers 1 | . . . . . . . . 1 Garrison Access . | . . . . . . . . . Total Hacks 48 | . 7 1 3 . 9 3 . 25 Successful 26 | . 2 1 3 . 6 1 . 13 Failed 22 | . 5 . . . 3 2 . 12 Catastrophic 5 | . 2 . . . . . . 3 Database Lockouts . | . . . . . . . . . Manual 20 | . 6 . 1 . 5 . . 8 Terminals 33 | . 7 . . . 9 3 . 14 Fabricators 2 | . . . . . . . . 2 Repair Stations 5 | . . . . . . . . 5 Recycling Units . | . . . . . . . . . Scanalyzers 4 | . . . . . . . . 4 Garrison Access . | . . . . . . . . . Terminal Hacks 12 | . . 1 3 . 4 1 . 3 Record 4 | . . . 2 . . . . 2 Open Door 1 | . . 1 . . . . . . Open DSF 2 | . . . . . . 1 . 1 Branch Access Points 1 | . . . . . 1 . . . Alert Level 1 | . . . . . 1 . . . Recall Reinforcements 2 | . . . . . 2 . . . Derelict Proto ID Bank 1 | . . . 1 . . . . . Fabricator Hacks 1 | . . . . . . . . 1 Build 1 | . . . . . . . . 1 Repair Station Hacks 4 | . . . . . . . . 4 Scan Component 2 | . . . . . . . . 2 Repair 2 | . . . . . . . . 2 Recycling Unit Hacks . | . . . . . . . . . Scanalyzer 1 | . . . . . . . . 1 Insert Component 1 | . . . . . . . . 1 Garrison Access Hacks . | . . . . . . . . . Unauthorized Hacks 8 | . 2 . . . 2 . . 4 Terminals 8 | . 2 . . . 2 . . 4 Botnet 8 | . 2 . . . 2 . . 4 Fabricators . | . . . . . . . . . Repair Stations . | . . . . . . . . . Recycling Units . | . . . . . . . . . Scanalyzers . | . . . . . . . . . Garrison Access . | . . . . . . . . . Data Cores Recovered . | . . . . . . . . . Used . | . . . . . . . . . Hacking Detections 14 | . 2 . . . 2 1 . 9 Full Trace Events 5 | . 1 . . . . . . 4 Feedback Events 3 | . . . . . . . . 3 Corruption 3 | . . . . . . . . 3 Feedback Blocked . | . . . . . . . . . Robot Schematics Acquired . | . . . . . . . . . Robots Built . | . . . . . . . . . Authchips . | . . . . . . . . . Time 116 | . . . . . . . . 116 Total Robot Build Rating . | . . . . . . . . . Part Schematics Acquired . | . . . . . . . . . Parts Built . | . . . . . . . . . Authchips . | . . . . . . . . . Time . | . . . . . . . . . Total Part Build Rating . | . . . . . . . . . Parts Repaired 2 | . . . . . . . . 2 Time 54 | . . . . . . . . 54 Parts Recycled . | . . . . . . . . . Recycled Matter . | . . . . . . . . . Retrieved Matter . | . . . . . . . . . Retrieved Components . | . . . . . . . . . Parts Scanalyzed 1 | . . . . . . . . 1 Part Schematics Acquired . | . . . . . . . . . Parts Damaged 1 | . . . . . . . . 1 Bothacking | -11 -10 -10 -10 -9 -8 -7 -7 -6 ------------ Run | Yrd Mat Min Exi Min Mat Fac DSF Fac Used RIF Installer . | . . . . . . . . . Robots Hacked . | . . . . . . . . . Non-combat . | . . . . . . . . . Combat . | . . . . . . . . . Robot Hacks Applied . | . . . . . . . . . Relay Couplers Released . | . . . . . . . . . Fabnet Peak Effective % . | . . . . . . . . . Robots Rewired . | . . . . . . . . . Allies Hacked . | . . . . . . . . . Hacks Repelled . | . . . . . . . . . Allies | -11 -10 -10 -10 -9 -8 -7 -7 -6 -------- Run | Yrd Mat Min Exi Min Mat Fac DSF Fac Total Allies 5 | . . 3 . 2 . . . . Largest Group 3 | . . 3 3 2 . . . . Highest-Rated Group 46 | . . 40 40 46 . . . . Highest-Rated Ally 31 | . . 16 16 31 . . . . Total Orders . | . . . . . . . . . Ally Attacks 24 | . . . 19 5 . . . . Total Damage 247 | . . . 184 63 . . . . Kills 4 | . . . 3 1 . . . . Allies Corrupted . | . . . . . . . . . Allies Melted . | . . . . . . . . . Intel | -11 -10 -10 -10 -9 -8 -7 -7 -6 ------- Run | Yrd Mat Min Exi Min Mat Fac DSF Fac Robot Analysis Total . | . . . . . . . . . Derelict Logs Recovered 1 | . . . . 1 . . . . Drone Launches . | . . . . . . . . . Drone Recoveries . | . . . . . . . . . Exploration | -11 -10 -10 -10 -9 -8 -7 -7 -6 ------------- Run | Yrd Mat Min Exi Min Mat Fac DSF Fac Turns Passed 3241 | . 570 847 353 483 257 39 28 664 Spaces Moved 2892 | 1 383 526 292 364 302 64 53 907 Core 27 | . . . . . . . . 27 Treads . | . . . . . . . . . Legs 1566 | 1 383 526 292 364 . . . . Wheels . | . . . . . . . . . Hover . | . . . . . . . . . Flight 1299 | . . . . . 302 64 53 880 Fastest Speed 50 | 120 120 120 120 120 50 50 50 50 Average Speed 88 | 120 120 120 120 120 50 50 50 50 Slowest Speed 190 | 120 190 120 120 120 50 50 50 100 Overloaded Moves . | . . . . . . . . . Propulsion Burnouts . | . . . . . . . . . Robots Hopped 4 | . . . . . 1 . . 3 Cave-ins Triggered . | . . . . . . . . . Exploration Rate (%) 37 | 2 54 76 60 53 26 2 41 21 Regions Visited 8 Branch Regions 3 Pre-discovered Areas 1 | . . . . 1 . . . . Known Exits Taken 6 | . 1 1 1 1 1 1 . . Unknown Exits Taken 1 | 1 . . . . . . . . Scrap Searched 1 | . . 1 . . . . . . Spaces Dug 52 | . . . . 16 . . . 36 Terrain Destroyed 168 | . . . . 16 16 . . 136 Melee . | . . . . . . . . . Projectile 4 | . . . . . 4 . . . AOE 164 | . . . . 16 12 . . 136 Terrain Rammed . | . . . . . . . . . Walls Destroyed . | . . . . . . . . . Machines Disabled . | . . . . . . . . . Actions | -11 -10 -10 -10 -9 -8 -7 -7 -6 --------- Run | Yrd Mat Min Exi Min Mat Fac DSF Fac Total 3396 | . 441 716 296 388 379 70 53 1053 Wait 290 | . 5 152 . 2 41 . . 90 Move 2877 | . 382 525 291 363 299 64 52 901 Hop 4 | . . . . . 1 . . 3 Pick Up 33 | . 8 5 1 3 7 1 1 7 Fast Attach 16 | . 7 3 . 2 1 1 . 2 Attach 11 | . 1 1 . . 3 2 . 4 Detach 4 | . . 2 . . 1 . . 1 Swap 27 | . 1 4 . 1 8 1 . 12 Drop 38 | . 10 8 4 5 5 1 . 5 Fire 96 | . 27 16 . 12 13 . . 28 Melee . | . . . . . . . . . Ram . | . . . . . . . . . Kick . | . . . . . . . . . Crush . | . . . . . . . . . Escape Stasis . | . . . . . . . . . Rewire . | . . . . . . . . . Trap . | . . . . . . . . . Miscellaneous . | . . . . . . . . . Route ------- -11/Scrapyard -10/Materials (discovered 2 exits: *Mat / *Min) -10/Mines (discovered 3 exits: *Mat x2 / *Exi) -10/Exiles -9/Mines -8/Materials -7/Factory -7/DSF -6/Factory History --------- Turn | Location | Event 1 | -11/Scrapyard | Discovered new exit (range 0) 1 | -11/Scrapyard | Entered Materials 141 | -10/Materials | Discovered new exit (range 13) 241 | -10/Materials | Identified exit to Mines 315 | -10/Materials | Build established: Mutant 329 | -10/Materials | Discovered new exit (range 8) 571 | -10/Materials | Entered Mines 574 | -10/Mines | Met a Derelict bent on vengeance 580 | -10/Mines | Met a Derelict who couldn't figure out how to use a Trap Extractor 669 | -10/Mines | Discovered new exit (range 15) 685 | -10/Mines | Identified exit to Materials 922 | -10/Mines | Build established: Scavenger-Mutant 1123 | -10/Mines | Found a damaged Exp. Sensor Array with a note attached 1127 | -10/Mines | Found Prototype Device 1171 | -10/Mines | Discovered exit to Materials (range 12) 1322 | -10/Mines | Assisted by bots powering up and referring to "LRC-V3" 1402 | -10/Mines | Deemed a non-threat by the Exiles lab entrance 1402 | -10/Mines | Discovered new exit (range 5) 1405 | -10/Mines | Identified exit to Exiles 1418 | -10/Mines | Entered Exiles 1418 | -10/Exiles | Accompanied by 3 allies 1448 | -10/Exiles | Met 8R-AWN 1468 | -10/Exiles | Met EX-HEX 1504 | -10/Exiles | Met EX-BIN 1525 | -10/Exiles | Aligned with FarCom system 1526 | -10/Exiles | Given EX-Vault access code 1554 | -10/Exiles | Opened EX-Vault 1603 | -10/Exiles | Exiles lab attacked by MAIN.C 1649 | -10/Exiles | Found Flying Fortress v7 1760 | -10/Exiles | Discovered new exit (range 11) 1769 | -10/Exiles | Identified exit to Mines 1771 | -10/Exiles | Left Exiles lab with Flying Fortress v7 1771 | -10/Exiles | Entered Mines 1785 | -9/Mines | Core integrity fell below 50% 1971 | -9/Mines | Discovered new exit (range 9) 1980 | -9/Mines | Identified exit to Materials 2022 | -9/Mines | Received a Rocket Launcher from a helpful Derelict 2140 | -9/Mines | Assembled infested the area 2145 | -9/Mines | Assisted by a Guerilla fighting off Assembled 2254 | -9/Mines | Entered Materials 2254 | -8/Materials | Evolved 4 slots: Propulsion x2, Utility x2 2503 | -8/Materials | Discovered new exit (range 3) 2506 | -8/Materials | Identified exit to Factory 2511 | -8/Materials | Entered Factory 2511 | -7/Factory | Evolved 2 slots: Utility x2 2550 | -7/Factory | Identified exit to DSF 2550 | -7/Factory | Entered DSF 2558 | -7/DSF | Discovered new exit (range 16) 2565 | -7/DSF | Identified exit to Factory 2572 | -7/DSF | Additional patrols routed to DSF 2578 | -7/DSF | Entered Factory 2578 | -6/Factory | Evolved 2 slots: Utility x2 2722 | -6/Factory | Repaired Imp. Weapon Shielding 2819 | -6/Factory | Build established: Scout 2834 | -6/Factory | Repaired Broken Lrn. Missile Launcher 2928 | -6/Factory | First assault squad dispatched 3223 | -6/Factory | Core integrity fell below 50% 3228 | -6/Factory | Core integrity fell below 20% 3240 | -6/Factory | Build established: Mutant 3242 | -6/Factory | Destroyed by S-27 Virus with Autogun Last Messages --------------- 03216_ ALERT: Hostiles spotted, dispatching reinforcements to Terminal F013. 03217_ Nuclear Reactor explodes. 03218_ Knocked back. 03218_ Flying Fortress v7 destroyed. 03218_ P-60 Hacker resets S-27 Virus, system corruption cleaned. 03219_ Lrn. Missile Launcher destroyed. 03219_ Dropped Med. Storage Unit. 03220_ The unstable cave ceiling collapses. 03220_ Imp. Terrain Scanner destroyed. 03220_ Cld. Ion Engine destroyed. 03220_ Cryofiber Web destroyed. 03221_ Acquired 3 matter. 03222_ WSAQ83GN&7:OWP:G KFJYE:CRRC >IQC1GYBN2 03222_ Fusion Modulator explodes. 03222_ S-27 Virus destroyed. 03224_ Knocked back. 03226_ The unstable cave ceiling collapses. 03228_ Critical hit (Burn: +37). 03238_ ECM Suite destroyed. Map ----- +----------------------------------------------------+ | | | | | | | | | ???????????????????????????????## ## ### #??????? | | ???????????????????????????????# [ " " #??????? | | ???????????????????????????????# #??????? | | ???????????????????????????????# * #??????? | | ??????????????????? ???????????# %% ######## | | ???????????????????????????????## =* # # | | ????????????????????????????#### "%% ## | | ?????????????????????????#### " ## | | ?????????????????????????# | | ?????????? ??????????????# ## ####### | | ????????????? ??? ???????# # [ ### #?????? | | ?????????????????"???????# #### ##### ####### | | ???????????????? ""??????# #?# ## # # | | ???????????????? ""??????# ### = ## # # | | ???????????????? ???????# #?# ## # ? | | ???????????????? ????#### #?# ## # ? | | ????????????####+######T # ### ## # ? | | ? ??????????# # ! ##i## #? | | ?? ?????????# ########g## ## | | ?""?????????# k #?# # # | | ?"??????????# #?# # # | | "???????????# @ s #?#"""" !# # | | ????????????# ###########/#######"""" # # | | ?????####+### #????# s #"""" # # | | ?????# #????# #"""" + + | | ?##??# #????# s""" """ #"""" ! # # | | ?????# """" #????# s""" """ #"""" # # | | ?????# ""F" #????# """ """ #"""" # ## | | #??#?# "" #????# s # # #? | | #????# ########?# """ """ ######### #? | | ######[ #? #?# """ """ # # % #? | | # #?# """p""" " # #? | | # """#?# g " # #? | | ^ + """#?# % " %]" #? | | # """#?# "g ]!" #? | | # #?###########"% %]" #? | | #?######??#????????# H #? | | ###########????????# #? | | """ """"" #??#???### #? | | """ """"" #???##???# +? | | """ """ #??????? ## | | #??????### # # #? | | #???? ???# | | ########+########### #????????### ## # | | ??# #????? ### ??????? | | ??# #???? ??????? | +----------------------------------------------------+ Best States ------------- Heat Dissipation 37 Energy Generation 23 Energy Capacity 480 Matter Stores 300 Matter Capacity 300 Sight Range 16 Terrain Scan Range 16 Terrain Scan Density 210 ECM Strength 1 Base Temperature (-) 100 Armor Coverage 225 Power Shielding 66 Propulsion Shielding 33 Weapon Shielding 66 Evasion (%) 60 Armor Integrity Analysis 30 Item Schematics ----------------- None Robot Schematics ------------------ None Fabricated ------------ Nothing Alien Tech Used ----------------- None Achievements -------------- Omniscient Cartographer Quantum Hacking Challenges ------------ None Game ------ Seed HardenedMicrodissipatorRay Manual? 0 Play Time 01:02:40 Cumulative 16.9 hours Start 2024.11.24 @ 22:28:40 End 2024.11.24 @ 23:32:32 Sessions 1 Manual Loads 0 Difficulty Rogue Special Mode None Game No. 14 Rogue 14 Adventurer 0 Explorer 0 Win Type - Total 0 Types 0/0/0/0/0/0/0/0/0 Lore% 14 Gallery% 23 Achievement% 20 Wizard Run 0 Options --------- Layout 0 ASCII 0 Keyboard 0 Movement Mouse Keybinds 0 Fullscreen 2 Font 24/X11 Map View 76x50 Zoom Use 0% Tactical HUD 1 Map Filters NONE Filters NONE Steam 1 RUN: 0b9e5a93-7928-4bf5-aefa-0dd2c2a60379